bitfinex/quotes_BTCUSD_20250610
["timestamp","ask_amount","ask_price","bid_price","bid_amount"]
[1749559575255,0.001,109570.0,109560.0,0.02934192]
[1749559576426,0.001,109570.0,109560.0,0.03034192]
[1749559576915,0.001,109570.0,109560.0,0.02934192]
[1749559577106,0.002,109570.0,109560.0,0.02934192]
[1749559578525,0.002,109570.0,109560.0,0.002]
[1749559578728,0.002,109570.0,109560.0,0.02931634]
[1749559585744,0.002,109570.0,109560.0,0.02912277]
[1749559586275,0.6814934,109580.0,109560.0,0.02912277]
[1749559588487,0.6814934,109580.0,109560.0,0.00280643]
[1749559593221,0.0913534,109570.0,109560.0,0.00280643]
[1749559594080,0.0913534,109570.0,109560.0,0.00180643]
[1749559594286,0.0913534,109570.0,109550.0,0.03647617]
[1749559594563,0.109,109560.0,109540.0,0.20211951]
[1749559594710,0.109,109560.0,109540.0,0.14767691]
[1749559595614,0.109,109560.0,109550.0,0.001]
[1749559596019,0.109,109560.0,109540.0,0.14867691]
[1749559597314,0.109,109560.0,109540.0,0.14967691]
[1749559597923,0.2001534,109570.0,109540.0,0.14967691]
[1749559598374,0.2001534,109570.0,109540.0,0.15067691]
[1749559598791,0.2001534,109570.0,109540.0,0.14867691]
[1749559599018,0.2001534,109570.0,109540.0,0.15067691]
[1749559599220,0.2001534,109570.0,109540.0,0.15822107]
[1749559599428,0.2001534,109570.0,109550.0,0.02733915]
[1749559599602,0.2001534,109570.0,109550.0,0.03588331]
[1749559600008,0.2001534,109570.0,109550.0,0.03588186]
[1749559600240,0.2001534,109570.0,109550.0,0.02733915]
[1749559600416,0.1671534,109570.0,109550.0,0.03588186]
[1749559600821,0.1671534,109570.0,109550.0,0.02733915]
[1749559601198,0.1671534,109570.0,109550.0,0.03588186]
[1749559601437,0.1671534,109570.0,109550.0,0.03688186]
[1749559601635,0.1671534,109570.0,109550.0,0.03688207]
[1749559601949,0.1671534,109570.0,109550.0,0.02833915]
[1749559603171,0.17630988,109570.0,109550.0,0.02833915]
[1749559605417,0.17630988,109570.0,109550.0,0.001]
[1749559607756,0.06750988,109570.0,109550.0,0.001]
[1749559607982,0.17490988,109570.0,109550.0,0.001]
[1749559608185,0.17486988,109570.0,109550.0,0.001]
[1749559611947,0.17486988,109570.0,109550.0,0.001]
[1749559612371,0.06750988,109570.0,109550.0,0.001]
[1749559612583,0.17434988,109570.0,109550.0,0.001]
[1749559621394,0.16934988,109570.0,109550.0,0.001]
[1749559621603,0.16934988,109570.0,109550.0,0.02835645]
[1749559622035,0.00915648,109570.0,109550.0,0.6382474]
[1749559622281,0.4799,109580.0,109560.0,0.09091877]
[1749559622455,0.4799,109580.0,109570.0,0.09091743]
[1749559622659,0.4799,109580.0,109570.0,0.0544426]
[1749559623294,0.4799,109580.0,109570.0,0.09087613]
[1749559624320,0.4809,109580.0,109570.0,0.03643353]
[1749559625116,0.4809,109580.0,109570.0,0.06373325]
[1749559625525,0.001,109580.0,109570.0,0.06373325]
[1749559626570,0.001,109580.0,109570.0,0.03643353]
[1749559627189,0.002,109590.0,109560.0,0.50024356]
[1749559627414,0.002,109590.0,109570.0,0.003]
[1749559627948,0.002,109590.0,109560.0,0.59159696]
[1749559628155,0.002,109590.0,109570.0,0.001]
[1749559628761,0.002,109590.0,109560.0,0.19159696]
[1749559628963,0.002,109590.0,109570.0,0.001]
[1749559630173,0.002,109590.0,109560.0,0.59259696]
[1749559630372,0.002,109590.0,109560.0,0.59159696]
[1749559630574,0.002,109590.0,109560.0,0.59359696]
[1749559631490,0.002,109590.0,109560.0,0.53915436]
[1749559631696,0.002,109590.0,109570.0,0.10492]
[1749559633550,0.002,109590.0,109570.0,0.10592]
[1749559635609,0.50668243,109610.0,109570.0,0.10592]
[1749559635930,0.59803583,109610.0,109570.0,0.10592]
[1749559636133,0.59803583,109610.0,109570.0,0.50592]
[1749559637307,0.59803583,109610.0,109570.0,0.50492]
[1749559637898,0.59803583,109610.0,109570.0,0.50592]
[1749559638646,0.60709841,109610.0,109570.0,0.50592]
[1749559639066,0.60709841,109610.0,109570.0,0.10592]
[1749559639509,0.60709841,109610.0,109570.0,0.50592]
[1749559639729,0.60709841,109610.0,109570.0,0.5972734]
[1749559641242,0.60709841,109610.0,109570.0,0.63370693]
[1749559642434,0.60709841,109610.0,109570.0,0.23370693]
[1749559643008,0.60709841,109610.0,109570.0,0.63370693]
[1749559645297,0.51574501,109610.0,109580.0,0.0913534]
[1749559645872,0.60709841,109610.0,109580.0,0.10368]
[1749559646066,0.60709841,109610.0,109570.0,0.03743353]
[1749559646401,0.60709841,109610.0,109570.0,0.12878693]
[1749559646599,0.60809841,109610.0,109580.0,0.10364]
[1749559646805,0.60809841,109610.0,109570.0,0.43643353]
[1749559646806,0.71173841,109610.0,109570.0,0.43643353]
[1749559647176,0.71173841,109610.0,109580.0,0.1036]
[1749559647620,0.71073841,109610.0,109580.0,0.1036]
[1749559647827,0.71173841,109610.0,109580.0,0.1036]
[1749559649352,0.71814342,109610.0,109580.0,0.1036]
[1749559650312,0.71173841,109610.0,109580.0,0.1036]
[1749559650906,0.71173841,109610.0,109580.0,0.1032]
[1749559651592,0.71173841,109610.0,109580.0,0.13963353]
[1749559652894,0.71117841,109610.0,109580.0,0.13963353]
[1749559653633,0.73304248,109610.0,109580.0,0.1032]
[1749559653848,0.73304248,109610.0,109570.0,0.4544426]
[1749559654105,0.01454085,109600.0,109570.0,0.4544426]
[1749559654332,0.35454085,109600.0,109580.0,0.103]
[1749559656637,0.35454085,109600.0,109580.0,0.104]
[1749559657429,0.35454085,109600.0,109580.0,0.1953534]
[1749559657580,0.35454085,109600.0,109580.0,0.249796]
[1749559657988,0.01454085,109600.0,109580.0,0.249796]
[1749559658489,0.01454085,109600.0,109580.0,0.75366261]
[1749559658699,0.01454085,109600.0,109590.0,0.09090159]
[1749559659560,0.01454085,109600.0,109590.0,0.18225499]
[1749559660175,0.01554085,109600.0,109590.0,0.18225499]
[1749559660391,0.01454085,109600.0,109590.0,0.18225499]
[1749559661471,0.01454085,109600.0,109590.0,0.58225499]
[1749559661868,0.01454085,109600.0,109590.0,0.58325499]
[1749559662682,0.01454085,109600.0,109590.0,0.52881239]
[1749559663088,0.01454085,109600.0,109590.0,0.58325499]
[1749559664569,0.01454085,109600.0,109590.0,0.18325499]
[1749559664904,0.01454085,109600.0,109590.0,0.58325499]
[1749559665109,0.01454085,109600.0,109590.0,0.52881239]
[1749559666745,0.01454085,109600.0,109590.0,0.58325499]
[1749559666999,0.01454085,109600.0,109590.0,0.68533499]
[1749559667176,0.01454085,109600.0,109590.0,0.63089239]
[1749559670142,0.01454085,109600.0,109590.0,0.23089239]
[1749559670797,0.01454085,109600.0,109590.0,0.63089239]
[1749559672770,0.01454085,109600.0,109590.0,0.68533499]
[1749559680008,0.01454085,109600.0,109590.0,0.28533499]
[1749559680343,0.01454085,109600.0,109590.0,0.68533499]
[1749559682402,0.01454085,109600.0,109590.0,1.15246297]
[1749559682618,0.4819,109610.0,109590.0,1.09802037]
[1749559682820,0.4819,109610.0,109600.0,0.1823751]
[1749559683048,0.01654085,109610.0,109600.0,0.1823751]
[1749559684147,0.01754085,109610.0,109600.0,0.5823751]
[1749559685864,0.01754085,109610.0,109600.0,0.54596642]
[1749559686517,0.01854085,109610.0,109600.0,0.54596642]
[1749559686946,0.004,109610.0,109600.0,1.04955339]
[1749559687171,0.004,109610.0,109600.0,1.17144949]
[1749559687374,0.004,109610.0,109600.0,0.59460848]
[1749559687580,0.004,109610.0,109600.0,1.13547755]
[1749559687781,0.004,109610.0,109600.0,1.20856027]
[1749559687984,0.002,109610.0,109600.0,1.25856027]
[1749559688217,0.002,109610.0,109600.0,1.1676912]
[1749559688663,0.00016876,109610.0,109600.0,1.25858376]
[1749559688877,0.00016876,109610.0,109600.0,0.75632868]
[1749559689055,0.00016876,109610.0,109600.0,1.25958376]
[1749559689285,0.00016876,109610.0,109600.0,1.29051795]
[1749559689811,0.00016876,109610.0,109600.0,1.21743523]
[1749559690003,0.00016876,109610.0,109600.0,1.22043523]
[1749559690208,0.00016876,109610.0,109600.0,0.71318015]
[1749559690483,0.00016876,109610.0,109600.0,1.22343523]
[1749559691138,0.00016876,109610.0,109600.0,1.22043523]
[1749559691554,0.00186876,109630.0,109610.0,0.95325508]
[1749559691765,0.00186876,109630.0,109620.0,0.24740459]
[1749559691766,0.01640961,109630.0,109620.0,0.24740459]
[1749559692535,0.31940961,109660.0,109620.0,0.24740459]
[1749559692734,0.03968,109680.0,109620.0,0.24740459]
[1749559692933,0.67407893,109670.0,109620.0,0.25040459]
[1749559693751,0.67407893,109670.0,109620.0,0.25140459]
[1749559694156,0.67407893,109670.0,109620.0,0.65140459]
[1749559694602,0.67407893,109670.0,109620.0,0.65340459]
[1749559694826,0.01454085,109660.0,109620.0,0.65340459]
[1749559695736,0.03103956,109660.0,109620.0,0.66975692]
[1749559695913,0.01454085,109660.0,109620.0,0.66975692]
[1749559696640,0.01454085,109660.0,109620.0,0.61330573]
[1749559696789,0.01454085,109660.0,109620.0,0.66975692]
[1749559697171,0.01454085,109660.0,109620.0,0.67275692]
[1749559697678,0.01454085,109660.0,109620.0,0.61830573]
[1749559698354,0.4819,109670.0,109640.0,0.70325508]
[1749559698611,0.4819,109670.0,109650.0,0.0913534]
[1749559698814,0.4819,109670.0,109650.0,0.1929534]
[1749559699191,0.01454085,109660.0,109650.0,0.1929534]
[1749559699723,0.00554085,109660.0,109650.0,0.1929534]
[1749559699927,0.4819,109670.0,109650.0,0.1929534]
[1749559700138,0.4819,109670.0,109650.0,0.0913534]
[1749559700334,0.4819,109670.0,109640.0,0.003]
[1749559700539,0.4819,109670.0,109640.0,0.0933534]
[1749559700753,0.5732534,109670.0,109650.0,0.1016]
[1749559701231,0.5742534,109670.0,109650.0,0.1016]
[1749559701648,0.5742534,109670.0,109650.0,0.10156]
[1749559701856,0.01454085,109660.0,109650.0,0.10156]
[1749559702064,0.01454085,109660.0,109640.0,0.10156]
[1749559702698,0.01454085,109660.0,109640.0,0.10356]
[1749559703128,0.01454085,109660.0,109640.0,0.10156]
[1749559703306,0.01554085,109660.0,109640.0,0.003]
[1749559703513,0.01554085,109660.0,109640.0,0.10456]
[1749559703718,0.01554085,109660.0,109640.0,0.10156]
[1749559705029,0.01554085,109660.0,109640.0,0.50156]
[1749559705285,0.01554085,109660.0,109620.0,0.09143505]
[1749559705390,0.01554085,109660.0,109630.0,0.1929134]
[1749559705787,0.01554085,109660.0,109630.0,0.5929134]
[1749559706193,0.01454085,109660.0,109630.0,0.5929134]
[1749559707605,0.01454085,109660.0,109630.0,0.5939134]
[1749559708700,0.01454085,109660.0,109630.0,0.1939134]
[1749559709347,0.01454085,109660.0,109630.0,0.5939134]
[1749559711723,0.5712534,109670.0,109630.0,0.5939134]
[1749559711925,0.54879425,109670.0,109640.0,0.002]
[1749559712956,0.45744085,109670.0,109650.0,0.10156]
[1749559713354,0.45744085,109670.0,109640.0,0.0943534]
[1749559713530,0.45744085,109670.0,109650.0,0.10156]
[1749559714128,0.01454085,109660.0,109650.0,0.10156]
[1749559714347,0.01454085,109660.0,109650.0,0.10456]
[1749559714551,0.01454085,109660.0,109650.0,0.10652]
[1749559714740,0.01454085,109660.0,109650.0,0.002]
[1749559714942,0.01454085,109660.0,109650.0,0.10352]
[1749559715065,0.01454085,109660.0,109650.0,0.003]
[1749559715266,0.01454085,109660.0,109650.0,0.10452]
[1749559715836,0.01454085,109660.0,109650.0,0.10252]
[1749559716035,0.01454085,109660.0,109650.0,0.10352]
[1749559716374,0.01454085,109660.0,109650.0,0.10252]
[1749559717021,0.00954085,109660.0,109650.0,0.10152]
[1749559717194,0.01154085,109660.0,109650.0,0.10152]
[1749559718626,0.01154085,109660.0,109650.0,0.50152]
[1749559721865,0.01154085,109660.0,109650.0,0.10152]
[1749559722172,0.01154085,109660.0,109640.0,0.0933534]
[1749559722382,0.01154085,109660.0,109640.0,0.002]
[1749559722582,0.01154085,109660.0,109640.0,0.10348]
[1749559722958,0.00954085,109660.0,109640.0,0.10348]
[1749559723511,0.01054085,109660.0,109640.0,0.10348]
[1749559726052,0.4529817,109670.0,109640.0,0.10348]
[1749559726261,0.5443351,109670.0,109640.0,0.10348]
[1749559727226,0.5443351,109670.0,109640.0,0.10448]
[1749559727475,0.5443351,109670.0,109640.0,0.10548]
[1749559727848,0.01454085,109660.0,109640.0,0.10548]
[1749559730230,0.01454085,109660.0,109640.0,0.1958334]
[1749559730970,0.01454085,109660.0,109640.0,0.003]
[1749559731171,0.01454085,109660.0,109640.0,0.10448]
[1749559731618,0.01454085,109660.0,109640.0,0.003]
[1749559732024,0.01454085,109660.0,109640.0,0.10444]
[1749559732224,0.01454085,109660.0,109640.0,0.10544]
[1749559733068,0.42852255,109670.0,109640.0,0.10444]
[1749559733279,0.51987595,109670.0,109640.0,0.10344]
[1749559734873,0.51987595,109670.0,109640.0,0.10444]
[1749559735101,0.01454085,109660.0,109640.0,0.10444]
[1749559735298,0.01454085,109660.0,109640.0,0.50544]
[1749559736236,0.01454085,109660.0,109640.0,0.10544]
[1749559736743,0.01454085,109660.0,109640.0,0.10444]
[1749559736939,0.01454085,109660.0,109640.0,0.003]
[1749559737165,0.01454085,109660.0,109640.0,0.002]
[1749559739401,0.42852255,109670.0,109640.0,0.0933534]
[1749559740662,0.42852255,109670.0,109640.0,0.4933534]
[1749559740850,0.42852255,109670.0,109640.0,0.4943534]
[1749559741191,0.38952255,109670.0,109640.0,0.4943534]
[1749559741590,0.38952255,109670.0,109640.0,0.4953534]
[1749559743338,0.38952255,109670.0,109640.0,0.49504579]
[1749559743538,0.38952255,109670.0,109640.0,0.09504579]
[1749559744154,0.38952255,109670.0,109640.0,0.49504579]
[1749559745680,0.38952255,109670.0,109640.0,0.59644579]
[1749559747685,0.38952255,109670.0,109640.0,0.49504579]
[1749559748101,0.38952255,109670.0,109640.0,0.59640579]
[1749559748318,0.35052255,109670.0,109640.0,0.49504579]
[1749559748536,0.35052255,109670.0,109640.0,0.59640579]
[1749559751246,0.35052255,109670.0,109640.0,0.49504579]
[1749559751571,0.35052255,109670.0,109640.0,0.59640579]
[1749559752025,0.35052255,109670.0,109640.0,0.65101975]
[1749559753576,0.35052255,109670.0,109640.0,0.14965975]
[1749559753797,0.35052255,109670.0,109640.0,0.25097975]
[1749559754235,0.35052255,109670.0,109640.0,0.65097975]
[1749559755534,0.31152255,109670.0,109640.0,0.65097975]
[1749559760750,0.31152255,109670.0,109650.0,0.10128]
[1749559761567,0.31152255,109670.0,109640.0,0.25093975]
[1749559762024,0.31152255,109670.0,109650.0,0.10128]
[1749559762437,0.27252255,109670.0,109650.0,0.10128]
[1749559763046,0.27252255,109670.0,109640.0,0.10297239]
[1749559764227,0.27252255,109670.0,109640.0,0.10397239]
[1749559764578,0.27252255,109670.0,109640.0,0.10497239]
[1749559764783,0.27252255,109670.0,109640.0,0.15958635]
[1749559764987,0.27252255,109670.0,109640.0,0.55958635]
[1749559767212,0.27452255,109670.0,109640.0,0.5573962]
[1749559767616,0.27452255,109670.0,109640.0,0.45661396]
[1749559767821,0.27452255,109670.0,109640.0,0.55785396]
[1749559769510,0.23552255,109670.0,109640.0,0.55785396]
[1749559769720,0.23552255,109670.0,109640.0,0.50324]
[1749559770554,0.69222255,109670.0,109640.0,0.50324]
[1749559772384,0.69222255,109670.0,109640.0,0.55785396]
[1749559773555,0.69222255,109670.0,109640.0,0.45661396]
[1749559773779,0.69222255,109670.0,109650.0,0.1012]
[1749559775197,0.69222255,109670.0,109640.0,0.5032]
[1749559775817,0.69222255,109670.0,109640.0,0.5022]
[1749559776019,0.69222255,109670.0,109640.0,0.5012]
[1749559776674,0.65322255,109670.0,109640.0,0.5012]
[1749559776886,0.65322255,109670.0,109640.0,0.5022]
[1749559777557,0.65322255,109670.0,109640.0,0.5032]
[1749559780737,0.65322255,109670.0,109650.0,0.10116]
[1749559780987,0.01454085,109660.0,109650.0,0.10116]
[1749559781213,0.01454085,109660.0,109640.0,0.002]
[1749559781442,0.01454085,109660.0,109650.0,0.10116]
[1749559781626,0.01454085,109660.0,109640.0,0.10316]
[1749559782748,0.01454085,109660.0,109640.0,0.10216]
[1749559782974,0.01454085,109660.0,109640.0,0.10116]
[1749559783187,0.01654085,109660.0,109640.0,0.10116]
[1749559783432,0.01454085,109660.0,109640.0,0.10116]
[1749559783660,0.7201168,109670.0,109640.0,0.10112]
[1749559783894,0.0913534,109660.0,109620.0,0.57733359]
[1749559784115,0.4313534,109660.0,109630.0,0.10112]
[1749559785063,0.4313534,109660.0,109640.0,0.001]
[1749559786067,0.4313534,109660.0,109640.0,0.002]
[1749559786627,0.4313534,109660.0,109640.0,0.001]
[1749559787076,0.4313534,109660.0,109630.0,0.10212]
[1749559787351,0.4313534,109660.0,109630.0,0.50212]
[1749559788290,0.4313534,109660.0,109630.0,0.50112]
[1749559788499,0.4313534,109660.0,109630.0,0.50212]
[1749559789102,0.4313534,109660.0,109630.0,0.50312]
[1749559790225,0.4313534,109660.0,109630.0,0.10312]
[1749559790623,0.3923534,109660.0,109630.0,0.50312]
[1749559790876,0.34,109660.0,109630.0,0.50312]
[1749559792291,0.34,109660.0,109630.0,0.50308]
[1749559793833,0.34,109660.0,109630.0,0.10308]
[1749559794470,0.34,109660.0,109630.0,0.50308]
[1749559797394,0.34,109660.0,109630.0,0.10308]
[1749559797874,0.301,109660.0,109630.0,0.50308]
[1749559801004,0.301,109660.0,109630.0,0.002]
[1749559801203,0.301,109660.0,109630.0,0.10304]
[1749559804906,0.01454085,109660.0,109630.0,0.50304]
[1749559805558,0.01454085,109660.0,109630.0,0.402]
[1749559806006,0.01454085,109660.0,109630.0,0.503]
[1749559807748,0.01454085,109660.0,109630.0,0.402]
[1749559807983,0.01454085,109660.0,109630.0,0.103]
[1749559808422,0.01454085,109660.0,109630.0,0.503]
[1749559808946,0.01454085,109660.0,109630.0,0.103]
[1749559809153,0.1923134,109650.0,109630.0,0.002]
[1749559809380,0.1923134,109650.0,109630.0,0.0018951]
[1749559809581,0.1923134,109650.0,109630.0,0.00180809]
[1749559809802,0.01454085,109640.0,109630.0,0.00180809]
[1749559810640,0.04017693,109640.0,109630.0,0.00080809]
[1749559810844,0.04017693,109640.0,109630.0,0.001]
[1749559811056,0.01454085,109640.0,109630.0,0.001]
[1749559811263,0.01454085,109640.0,109630.0,0.002]
[1749559811483,0.01454085,109640.0,109620.0,0.002]
[1749559811670,0.01454085,109640.0,109630.0,0.001]
[1749559811805,0.01454085,109640.0,109630.0,0.002]
[1749559812001,0.1923134,109650.0,109630.0,0.002]
[1749559812915,0.1923134,109650.0,109630.0,0.001]
[1749559814093,0.01454085,109640.0,109620.0,0.002]
[1749559814245,0.01454085,109640.0,109630.0,0.001]
[1749559814446,0.45744433,109640.0,109630.0,0.001]
[1749559814647,0.47362458,109640.0,109630.0,0.001]
[1749559815193,0.47362458,109640.0,109620.0,0.002]
[1749559815317,0.47362458,109640.0,109630.0,0.001]
[1749559815318,0.38227118,109640.0,109630.0,0.001]
[1749559815529,0.23454458,109640.0,109630.0,0.001]
[1749559815722,0.23454458,109640.0,109620.0,0.002]
[1749559815903,0.10589425,109630.0,109620.0,0.002]
[1749559817824,0.10589425,109630.0,109620.0,0.003]
[1749559818046,0.10589425,109630.0,109620.0,0.004]
[1749559818453,0.10589425,109630.0,109620.0,0.003]
[1749559818654,0.10589425,109630.0,109620.0,0.004]
[1749559819048,0.06789425,109630.0,109620.0,0.004]
[1749559825674,0.16877425,109630.0,109620.0,0.004]
[1749559825886,0.06789425,109630.0,109620.0,0.004]
[1749559826079,0.12977425,109630.0,109620.0,0.004]
[1749559826776,0.62267425,109630.0,109620.0,0.004]
[1749559828374,0.52179425,109630.0,109620.0,0.004]
[1749559828599,0.62263425,109630.0,109620.0,0.004]
[1749559833202,0.67498765,109630.0,109620.0,0.004]
[1749559833418,0.57414765,109630.0,109620.0,0.004]
[1749559833638,0.67498765,109630.0,109620.0,0.004]
[1749559835151,0.6895285,109630.0,109620.0,0.004]
[1749559836713,0.6894885,109630.0,109620.0,0.004]
[1749559837998,0.71133295,109630.0,109620.0,0.004]
[1749559840387,0.67233295,109630.0,109620.0,0.004]
[1749559840835,0.67233295,109630.0,109620.0,0.003]
[1749559841037,0.67233295,109630.0,109620.0,0.002]
[1749559841268,0.67233295,109630.0,109620.0,0.004]
[1749559841694,0.67229295,109630.0,109620.0,0.002]
[1749559841912,0.67329295,109630.0,109620.0,0.002]
[1749559842545,0.57253295,109630.0,109620.0,0.002]
[1749559842742,0.67329295,109630.0,109620.0,0.002]
[1749559844707,0.68295714,109630.0,109620.0,0.002]
[1749559844902,0.67329295,109630.0,109620.0,0.002]
[1749559847059,0.57253295,109630.0,109620.0,0.002]
[1749559847342,0.67325295,109630.0,109620.0,0.002]
[1749559847562,0.63425295,109630.0,109620.0,0.002]
[1749559847958,0.53353295,109630.0,109620.0,0.002]
[1749559848178,0.63425295,109630.0,109620.0,0.002]
[1749559850499,0.53353295,109630.0,109620.0,0.002]
[1749559850738,0.63425295,109630.0,109620.0,0.002]
[1749559852104,0.53353295,109630.0,109620.0,0.002]
[1749559852317,0.5283187,109630.0,109620.0,0.002]
[1749559854492,0.4893187,109630.0,109620.0,0.002]
[1749559858382,0.4892787,109630.0,109620.0,0.002]
[1749559858825,0.3886387,109630.0,109620.0,0.002]
[1749559859034,0.46743425,109630.0,109620.0,0.002]
[1749559859264,0.4892787,109630.0,109620.0,0.002]
[1749559861667,0.32779425,109630.0,109620.0,0.002]
[1749559862315,0.001,109630.0,109620.0,0.002]
[1749559869722,0.08795666,109650.0,109620.0,0.002]
[1749559869941,0.17931006,109650.0,109620.0,0.002]
[1749559870354,0.20193672,109650.0,109620.0,0.02416644]
[1749559870563,0.20193672,109650.0,109620.0,0.002]
[1749559870772,0.02262666,109650.0,109620.0,0.002]
[1749559871186,0.80373191,109660.0,109620.0,0.003]
[1749559871405,0.79452531,109660.0,109620.0,0.003]
[1749559871611,0.32679425,109660.0,109620.0,0.16843612]
[1749559871823,0.32679425,109660.0,109630.0,0.0913534]
[1749559872259,0.002,109670.0,109630.0,0.0913534]
[1749559872478,0.1939134,109670.0,109630.0,0.0913534]
[1749559873319,0.1939134,109670.0,109630.0,0.08944898]
[1749559874609,0.21609095,109670.0,109630.0,0.08944898]
[1749559875447,0.21609095,109670.0,109630.0,0.48944898]
[1749559878694,0.21609095,109670.0,109630.0,0.18992898]
[1749559879151,0.21609095,109670.0,109630.0,0.58992898]
[1749559882134,0.21609095,109670.0,109630.0,0.18992898]
[1749559882538,0.21609095,109670.0,109630.0,0.58992898]
[1749559885531,0.21609095,109670.0,109630.0,0.18992898]
[1749559885936,0.21609095,109670.0,109630.0,0.58992898]
[1749559889144,0.21609095,109670.0,109630.0,0.18992898]
[1749559889715,0.21609095,109670.0,109630.0,0.58992898]
[1749559890730,0.21609095,109670.0,109630.0,0.48944898]
[1749559890936,0.4313534,109660.0,109620.0,0.002]
[1749559891143,0.43775459,109660.0,109620.0,0.10236]
[1749559891350,0.45864941,109660.0,109620.0,0.10236]
[1749559891614,0.48047315,109660.0,109620.0,0.10236]
[1749559891833,0.57182655,109660.0,109620.0,0.002]
[1749559892048,0.57822787,109660.0,109620.0,0.002]
[1749559892254,0.57182655,109660.0,109620.0,0.002]
[1749559892464,0.57822785,109660.0,109620.0,0.002]
[1749559892698,0.48687445,109660.0,109620.0,0.002]
[1749559893313,0.10036,109650.0,109620.0,0.002]
[1749559893507,0.1917134,109650.0,109620.0,0.002]
[1749559894890,0.1927134,109650.0,109620.0,0.002]
[1749559896609,0.0923534,109650.0,109620.0,0.002]
[1749559902991,0.0923534,109650.0,109620.0,0.07508272]
[1749559903181,0.0923534,109650.0,109620.0,0.47508272]
[1749559903814,0.001,109650.0,109620.0,0.47508272]
[1749559906100,0.001,109650.0,109620.0,0.07508272]
[1749559906766,0.001,109650.0,109620.0,0.47508272]
[1749559907162,0.001,109650.0,109620.0,0.402]
[1749559908820,0.001,109650.0,109620.0,0.002]
[1749559910962,0.42410374,109660.0,109620.0,0.002]
[1749559911091,0.4936334,109660.0,109620.0,0.002]
[1749559911284,0.51545714,109660.0,109620.0,0.002]
[1749559911931,0.10589425,109650.0,109620.0,0.002]
[1749559916542,0.155014,109650.0,109620.0,0.002]
[1749559916945,0.19132586,109650.0,109620.0,0.002]
[1749559917560,0.1002,109640.0,109620.0,0.002]
[1749559917768,0.1915534,109640.0,109620.0,0.002]
[1749559917972,0.21924272,109640.0,109620.0,0.002]
[1749559918688,0.0913534,109630.0,109600.0,0.002]
[1749559919837,0.0913534,109630.0,109600.0,0.003]
[1749559921088,0.0913534,109630.0,109600.0,0.004]
[1749559921910,0.0913534,109630.0,109600.0,0.003]
[1749559922320,0.0913534,109630.0,109600.0,0.002]
[1749559922760,0.0913534,109630.0,109600.0,0.005]
[1749559923179,0.0913534,109630.0,109600.0,0.004]
[1749559923391,0.11013475,109630.0,109600.0,0.004]
[1749559923605,0.11013475,109630.0,109600.0,0.005]
[1749559924645,0.0913534,109630.0,109600.0,0.01351591]
[1749559924855,0.0913534,109630.0,109600.0,0.005]
[1749559925056,0.0913534,109630.0,109600.0,0.01351601]
[1749559925684,0.75814765,109630.0,109600.0,0.01351601]
[1749559925892,0.01454085,109620.0,109600.0,0.01351818]
[1749559926108,0.10589425,109620.0,109600.0,0.01351818]
[1749559926314,0.20601425,109620.0,109600.0,0.005]
[1749559926527,0.0913534,109610.0,109600.0,0.005]
[1749559926941,0.0913534,109610.0,109600.0,0.01251793]
[1749559927151,0.0913534,109610.0,109600.0,0.01051793]
[1749559927987,0.0913534,109610.0,109600.0,0.01050978]
[1749559928401,0.0913534,109610.0,109600.0,0.01050826]
[1749559928614,0.0913534,109610.0,109600.0,0.002]
[1749559928831,0.0913534,109610.0,109600.0,0.01050824]
[1749559929560,0.0913534,109610.0,109600.0,0.01050825]
[1749559929761,0.0913534,109610.0,109600.0,0.002]
[1749559930118,0.12835389,109610.0,109600.0,0.01050653]
[1749559930535,0.12835389,109610.0,109600.0,0.002]
[1749559930673,0.12835389,109610.0,109600.0,0.01050654]
[1749559931285,0.03700049,109610.0,109600.0,0.01050654]
[1749559931492,0.11466085,109620.0,109600.0,0.01050194]
[1749559931710,0.28918177,109620.0,109600.0,0.01050137]
[1749559932051,0.28918177,109620.0,109600.0,0.002]
[1749559932253,0.34,109610.0,109600.0,0.01050113]
[1749559932462,0.34,109610.0,109600.0,0.01050091]
[1749559933355,0.34,109610.0,109600.0,0.0105005]
[1749559933621,0.37693905,109610.0,109600.0,0.01050049]
[1749559933818,0.37693905,109610.0,109600.0,0.01050047]
[1749559934263,0.37693905,109610.0,109600.0,0.01049986]
[1749559934685,0.37693905,109610.0,109600.0,0.002]
[1749559934896,0.37693905,109610.0,109600.0,0.01049985]
[1749559935116,0.37693905,109610.0,109600.0,0.002]
[1749559935322,0.37693905,109610.0,109600.0,0.01049953]
[1749559935535,0.37693905,109610.0,109600.0,0.002]
[1749559935748,0.37693905,109610.0,109600.0,0.01049958]
[1749559936181,0.37693905,109610.0,109600.0,0.01049932]
[1749559936872,0.37693905,109610.0,109600.0,0.01049963]
[1749559937303,0.47701905,109610.0,109600.0,0.01050174]
[1749559938432,0.13701905,109610.0,109600.0,0.01050174]
[1749559938601,0.13701905,109610.0,109600.0,0.002]
[1749559938780,0.13701905,109610.0,109600.0,0.0105063]
[1749559939172,0.13701905,109610.0,109600.0,0.002]
[1749559939380,0.13701905,109610.0,109600.0,0.0105063]
[1749559940051,0.13701905,109610.0,109600.0,0.01050648]
[1749559940751,0.13701905,109610.0,109600.0,0.002]
[1749559941144,0.13701905,109610.0,109600.0,0.0105063]
[1749559941685,0.03693905,109610.0,109600.0,0.0105063]
[1749559942104,0.10008,109610.0,109600.0,0.002]
[1749559942310,0.10589425,109620.0,109600.0,0.01051627]
[1749559942500,0.0913534,109620.0,109600.0,0.002]
[1749559942657,0.10004,109610.0,109600.0,0.01051625]
[1749559943274,0.10004,109610.0,109600.0,0.01051641]
[1749559943877,0.10004,109610.0,109600.0,0.002]
[1749559944439,0.10004,109610.0,109600.0,0.0105164]
[1749559945630,0.0913534,109620.0,109600.0,0.01052543]
[1749559945791,0.1289145,109620.0,109600.0,0.002]
[1749559945990,0.1289145,109620.0,109600.0,0.01052479]
[1749559946196,0.0375611,109620.0,109600.0,0.01052479]
[1749559946437,0.35406931,109630.0,109600.0,0.01052454]
[1749559946595,0.49086497,109630.0,109600.0,0.01052454]
[1749559946804,0.10004,109620.0,109600.0,0.01052454]
[1749559947206,0.10004,109620.0,109600.0,0.01052459]
[1749559947405,0.10004,109620.0,109600.0,0.01052462]
[1749559947664,0.10004,109620.0,109600.0,0.002]